fUSD/lending_fUSD_20251221
["ID","MTS","AMOUNT","RATE_DAILY","PERIOD"]
[399342632,1766314536659,-513.64920374,0.00041095,120]
[399342633,1766314536709,-1174.45128658,0.00041095,120]
[399342634,1766314536753,-500.0,0.00041095,120]
[399342635,1766314536798,-1201.6,0.00041095,120]
[399342636,1766314536840,-500.0,0.00041095,120]
[399342637,1766314536883,-1201.6,0.00041095,120]
[399342638,1766314536928,-500.0,0.00041095,120]
[399342639,1766314536971,-1201.6,0.00041095,120]
[399342640,1766314537016,-500.0,0.00041095,120]
[399342641,1766314537066,-1201.6,0.00041095,120]
[399342642,1766314537110,-500.0,0.00041095,120]
[399342643,1766314537156,-500.0,0.00041095,120]
[399342644,1766314537200,-1201.6,0.00041095,120]
[399342645,1766314537244,-500.0,0.00041095,120]
[399342646,1766314537288,-1201.6,0.00041095,120]
[399342647,1766314537331,-500.0,0.00041095,120]
[399342648,1766314537375,-500.0,0.00041095,120]
[399342649,1766314537418,-500.0,0.00041095,120]
[399342650,1766314537460,-1201.6,0.00041095,120]
[399342651,1766314537504,-500.0,0.00041095,120]
[399342652,1766314537547,-500.0,0.00041095,120]
[399342653,1766314537589,-1201.6,0.00041095,120]
[399342654,1766314537631,-500.0,0.00041095,120]
[399342655,1766314537672,-500.0,0.00041095,120]
[399342656,1766314537715,-393.98,0.00041095,120]
[399342657,1766314537757,-1201.6,0.00041095,120]
[399342658,1766314537800,-500.0,0.00041095,120]
[399342659,1766314537843,-500.0,0.00041095,120]
[399342660,1766314537885,-1201.6,0.00041095,120]
[399342661,1766314537926,-500.0,0.00041095,120]
[399342662,1766314537969,-184.02535439,0.00041095,120]
[399342663,1766314538012,-1201.6,0.00041095,120]
[399342664,1766314538059,-500.0,0.00041095,120]
[399342665,1766314538103,-1201.6,0.00041095,120]
[399342666,1766314538146,-500.0,0.00041095,120]
[399342667,1766314538190,-1201.6,0.00041095,120]
[399342668,1766314538234,-500.0,0.00041095,120]
[399342669,1766314538280,-1201.6,0.00041095,120]
[399342670,1766314538326,-500.0,0.00041095,120]
[399342671,1766314538369,-1201.6,0.00041095,120]
[399342672,1766314538419,-500.0,0.00041095,120]
[399342673,1766314538463,-1201.6,0.00041095,120]
[399342674,1766314538505,-500.0,0.00041095,120]
[399342675,1766314538548,-1201.66591948,0.00041095,120]
[399342676,1766314538590,-500.0,0.00041095,120]
[399342677,1766314538635,-500.0,0.00041095,120]
[399342678,1766314538682,-500.0,0.00041095,120]
[399342679,1766314538729,-500.0,0.00041095,120]
[399342680,1766314538775,-500.0,0.00041095,120]
[399342681,1766314538820,-500.0,0.00041095,120]
[399342682,1766314538867,-500.0,0.00041095,120]
[399342683,1766314538912,-500.0,0.00041095,120]
[399342684,1766314538957,-500.0,0.00041095,120]
[399342685,1766314539002,-500.0,0.00041095,120]
[399342686,1766314539048,-500.0,0.00041095,120]
[399342687,1766314539096,-500.0,0.00041095,120]
[399342688,1766314539141,-1253.15,0.00041095,120]
[399342689,1766314539188,-500.0,0.00041095,120]
[399342690,1766314539235,-500.0,0.00041095,120]
[399342691,1766314539280,-500.0,0.00041095,120]
[399342692,1766314539324,-500.0,0.00041095,120]
[399342693,1766314539368,-1253.15,0.00041095,120]
[399342694,1766314539413,-500.0,0.00041095,120]
[399342695,1766314539456,-500.0,0.00041095,120]
[399342696,1766314539499,-500.0,0.00041095,120]
[399342697,1766314539541,-500.0,0.00041095,120]
[399342698,1766314539583,-500.0,0.00041095,120]
[399342699,1766314539626,-1253.15,0.00041095,120]
[399342700,1766314539668,-500.0,0.00041095,120]
[399342701,1766314539711,-500.0,0.00041095,120]
[399342702,1766314539753,-521.2,0.00041095,120]
[399342703,1766314539794,-500.0,0.00041095,120]
[399342704,1766314539838,-333.3837999,0.00041095,120]
[399342705,1766314539880,-517.63938465,0.00041095,120]
[399342706,1766314539924,-1253.15,0.00041095,120]
[399342707,1766314539965,-500.0,0.00041095,120]
[399342708,1766314540009,-500.0,0.00041095,120]
[399342709,1766314540056,-521.2,0.00041095,120]
[399342710,1766314540102,-500.0,0.00041095,120]
[399342711,1766314540145,-500.0,0.00041095,120]
[399342712,1766314540325,-1253.15,0.00041095,120]
[399342713,1766314540387,-500.0,0.00041095,120]
[399342714,1766314540432,-521.2,0.00041095,120]
[399342715,1766314540476,-500.0,0.00041095,120]
[399342716,1766314540525,-500.0,0.00041095,120]
[399342717,1766314540574,-500.0,0.00041095,120]
[399342718,1766314540617,-500.0,0.00041095,120]
[399342719,1766314540660,-500.0,0.00041095,120]
[399342720,1766314540706,-500.0,0.00041095,120]
[399342721,1766314540749,-500.0,0.00041095,120]
[399342722,1766314540794,-521.2,0.00041095,120]
[399342723,1766314540837,-1253.15,0.00041095,120]
[399342724,1766314540880,-500.0,0.00041095,120]
[399342725,1766314540922,-500.0,0.00041095,120]
[399342726,1766314540968,-500.0,0.00041095,120]
[399342727,1766314541012,-1253.15,0.00041095,120]
[399342728,1766314541062,-500.0,0.00041095,120]
[399342729,1766314541105,-521.2,0.00041095,120]
[399342730,1766314541151,-500.0,0.00041095,120]
[399342731,1766314541195,-500.0,0.00041095,120]
[399342732,1766314541242,-1253.15,0.00041095,120]
[399342733,1766314541289,-521.2,0.00041095,120]
[399342734,1766314541333,-500.0,0.00041095,120]
[399342735,1766314541380,-500.0,0.00041095,120]
[399342736,1766314541425,-500.0,0.00041095,120]
[399342737,1766314541469,-1253.15,0.00041095,120]
[399342738,1766314541513,-521.2,0.00041095,120]
[399342739,1766314541557,-500.0,0.00041095,120]
[399342740,1766314541602,-500.0,0.00041095,120]
[399342741,1766314541647,-1253.15,0.00041095,120]
[399342742,1766314541693,-500.0,0.00041095,120]
[399342743,1766314541738,-521.2,0.00041095,120]
[399342744,1766314541782,-500.0,0.00041095,120]
[399342745,1766314541828,-500.0,0.00041095,120]
[399342746,1766314541872,-500.0,0.00041095,120]
[399342747,1766314541918,-1253.15,0.00041095,120]
[399342748,1766314541961,-521.2,0.00041095,120]
[399342749,1766314542005,-500.0,0.00041095,120]
[399342750,1766314542051,-500.0,0.00041095,120]
[399342751,1766314542095,-500.0,0.00041095,120]
[399342752,1766314542141,-1253.15,0.00041095,120]
[399342753,1766314542185,-521.2,0.00041095,120]
[399342754,1766314542230,-500.0,0.00041095,120]
[399342755,1766314542274,-500.0,0.00041095,120]
[399342756,1766314542316,-500.0,0.00041095,120]
[399342757,1766314542359,-1253.15,0.00041095,120]
[399342758,1766314542401,-521.2,0.00041095,120]
[399342759,1766314542444,-511.06173348,0.00041095,120]
[399342760,1766314542486,-500.0,0.00041095,120]
[399342761,1766314542528,-500.0,0.00041095,120]
[399342762,1766314542570,-521.2,0.00041095,120]
[399342763,1766314542610,-500.0,0.00041095,120]
[399342764,1766314542652,-500.0,0.00041095,120]
[399342765,1766314542695,-521.2,0.00041095,120]
[399342766,1766314542738,-1253.15,0.00041095,120]
[399342767,1766314542781,-500.0,0.00041095,120]
[399342768,1766314542824,-500.0,0.00041095,120]
[399342769,1766314542866,-521.2,0.00041095,120]
[399342770,1766314542910,-1253.15,0.00041095,120]
[399342771,1766314542952,-500.0,0.00041095,120]
[399342772,1766314542996,-500.0,0.00041095,120]
[399342773,1766314543039,-521.2,0.00041095,120]
[399342774,1766314543084,-1253.15,0.00041095,120]
[399342775,1766314543127,-500.0,0.00041095,120]
[399342776,1766314543172,-500.0,0.00041095,120]
[399342777,1766314543219,-521.2,0.00041095,120]
[399342778,1766314543264,-1253.15,0.00041095,120]
[399342779,1766314543310,-500.0,0.00041095,120]
[399342780,1766314543355,-500.0,0.00041095,120]
[399342781,1766314543400,-1253.15,0.00041095,120]
[399342782,1766314543443,-521.2,0.00041095,120]
[399342783,1766314543486,-500.0,0.00041095,120]
[399342784,1766314543528,-500.0,0.00041095,120]
[399342785,1766314543572,-1253.15,0.00041095,120]
[399342786,1766314543613,-222.59992619,0.00041095,120]
[399342787,1766314543655,-521.2,0.00041095,120]
[399342788,1766314543699,-275.5,0.00041095,120]
[399342789,1766314543743,-1253.15,0.00041095,120]
[399342790,1766314543787,-500.0,0.00041095,120]
[399342791,1766314543830,-521.2,0.00041095,120]
[399342792,1766314543875,-1253.15,0.00041095,120]
[399342793,1766314543927,-500.0,0.00041095,120]
[399342794,1766314543969,-521.2,0.00041095,120]
[399342795,1766314544012,-1253.15,0.00041095,120]
[399342796,1766314544066,-521.2,0.00041095,120]
[399342797,1766314544452,-500.0,0.00041095,120]
[399342798,1766314544497,-500.0,0.00041095,120]
[399342799,1766314544540,-521.2,0.00041095,120]
[399342800,1766314544589,-500.0,0.00041095,120]
[399342801,1766314544640,-1253.15,0.00041095,120]
[399342802,1766314544691,-510.35166317,0.00041095,120]
[399342803,1766314544739,-521.2,0.00041095,120]
[399342804,1766314544783,-500.0,0.00041095,120]
[399342805,1766314544826,-1253.19,0.00041095,120]
[399342806,1766314544869,-521.42163008,0.00041095,120]
[399342807,1766314544913,-500.0,0.00041095,120]
[399342808,1766314544956,-500.0,0.00041095,120]
[399342809,1766314544998,-1843.3,0.00041095,120]
[399342810,1766314545043,-500.0,0.00041095,120]
[399342811,1766314545087,-500.0,0.00041095,120]
[399342812,1766314545134,-1843.3,0.00041095,120]
[399342813,1766314545177,-513.96958101,0.00041095,120]
[399342814,1766314545223,-1843.3,0.00041095,120]
[399342815,1766314545268,-1843.3,0.00041095,120]
[399342816,1766314545314,-1843.3,0.00041095,120]
[399342817,1766314545359,-1843.3,0.00041095,120]
[399342818,1766314545405,-1691.6,0.00041095,120]
[399342819,1766314545449,-500.0,0.00041095,120]
[399342820,1766314545493,-1843.3,0.00041095,120]
[399342821,1766314545537,-500.0,0.00041095,120]
[399342822,1766314545582,-1691.6,0.00041095,120]
[399342823,1766314545625,-500.0,0.00041095,120]
[399342824,1766314545666,-1843.3,0.00041095,120]
[399342825,1766314545713,-509.2978674,0.00041095,120]
[399342826,1766314545756,-1691.6,0.00041095,120]
[399342827,1766314545799,-500.0,0.00041095,120]
[399342828,1766314545842,-500.0,0.00041095,120]
[399342829,1766314545884,-1843.3,0.00041095,120]
[399342830,1766314545927,-1691.6,0.00041095,120]
[399342831,1766314545971,-500.0,0.00041095,120]
[399342832,1766314546016,-505.85317979,0.00041095,120]
[399342833,1766314546065,-1843.3,0.00041095,120]
[399342834,1766314546109,-500.0,0.00041095,120]
[399342835,1766314546152,-1691.6,0.00041095,120]
[399342836,1766314546198,-500.0,0.00041095,120]
[399342837,1766314546243,-1843.3,0.00041095,120]
[399342838,1766314546288,-500.0,0.00041095,120]
[399342839,1766314546333,-500.0,0.00041095,120]
[399342840,1766314546379,-1691.6,0.00041095,120]
[399342841,1766314546423,-500.0,0.00041095,120]
[399342842,1766314546467,-500.0,0.00041095,120]
[399342843,1766314546517,-500.0,0.00041095,120]
[399342844,1766314546564,-1691.6,0.00041095,120]
[399342845,1766314546613,-500.0,0.00041095,120]
[399342846,1766314546657,-1843.3,0.00041095,120]
[399342847,1766314546703,-500.0,0.00041095,120]
[399342848,1766314546748,-1691.6,0.00041095,120]
[399342849,1766314546795,-500.0,0.00041095,120]
[399342850,1766314546844,-500.0,0.00041095,120]
[399342851,1766314546889,-1691.6,0.00041095,120]
[399342852,1766314546934,-1843.3,0.00041095,120]
[399342853,1766314546979,-500.0,0.00041095,120]
[399342854,1766314547028,-500.0,0.00041095,120]
[399342855,1766314547071,-500.0,0.00041095,120]
[399342856,1766314547116,-1691.6,0.00041095,120]
[399342857,1766314547160,-500.0,0.00041095,120]
[399342858,1766314547205,-1843.3,0.00041095,120]
[399342859,1766314547249,-500.0,0.00041095,120]
[399342860,1766314547294,-500.0,0.00041095,120]
[399342861,1766314547339,-500.0,0.00041095,120]
[399342862,1766314547383,-1843.3,0.00041095,120]
[399342863,1766314547568,-1691.6,0.00041095,120]
[399342864,1766314547614,-500.0,0.00041095,120]
[399342865,1766314547659,-500.0,0.00041095,120]
[399342866,1766314547702,-1843.3,0.00041095,120]
[399342867,1766314547745,-500.0,0.00041095,120]
[399342868,1766314547788,-500.0,0.00041095,120]
[399342869,1766314547830,-500.0,0.00041095,120]
[399342870,1766314547874,-500.0,0.00041095,120]
[399342871,1766314547916,-1843.3,0.00041095,120]
[399342872,1766314547961,-500.0,0.00041095,120]
[399342873,1766314548004,-550.73503441,0.00041095,120]
[399342874,1766314548048,-1691.6,0.00041095,120]
[399342875,1766314548091,-500.0,0.00041095,120]
[399342876,1766314548136,-1843.3,0.00041095,120]
[399342877,1766314548181,-500.0,0.00041095,120]
[399342878,1766314548224,-500.0,0.00041095,120]
[399342879,1766314548269,-1691.6,0.00041095,120]
[399342880,1766314548312,-500.0,0.00041095,120]
[399342881,1766314548355,-500.0,0.00041095,120]
[399342882,1766314548399,-500.0,0.00041095,120]
[399342883,1766314548444,-1843.3,0.00041095,120]
[399342884,1766314548487,-500.0,0.00041095,120]
[399342885,1766314548532,-500.0,0.00041095,120]
[399342886,1766314548576,-1691.6,0.00041095,120]
[399342887,1766314548619,-500.0,0.00041095,120]
[399342888,1766314548662,-500.0,0.00041095,120]
[399342889,1766314548705,-500.0,0.00041095,120]
[399342890,1766314548750,-1843.3,0.00041095,120]
[399342891,1766314548794,-500.0,0.00041095,120]
[399342892,1766314548836,-500.0,0.00041095,120]
[399342893,1766314548881,-500.0,0.00041095,120]
[399342894,1766314548925,-1691.6,0.00041095,120]
[399342895,1766314548969,-424.34,0.00041095,120]
[399342896,1766314549014,-1843.3,0.00041095,120]
[399342897,1766314549066,-500.0,0.00041095,120]
[399342898,1766314549110,-500.0,0.00041095,120]
[399342899,1766314549153,-500.0,0.00041095,120]
[399342900,1766314549197,-500.0,0.00041095,120]
[399342901,1766314549242,-1691.6,0.00041095,120]
[399342902,1766314549291,-1843.3,0.00041095,120]
[399342903,1766314549337,-500.0,0.00041095,120]
[399342904,1766314549384,-500.0,0.00041095,120]
[399342905,1766314549429,-500.0,0.00041095,120]
[399342906,1766314549475,-180.74269877,0.00041095,120]
[399342907,1766314549520,-1691.6,0.00041095,120]
[399342908,1766314549564,-500.0,0.00041095,120]
[399342909,1766314549610,-1843.3,0.00041095,120]
[399342910,1766314549656,-500.0,0.00041095,120]
[399342911,1766314549699,-500.0,0.00041095,120]
[399342912,1766314549742,-1691.6,0.00041095,120]
[399342913,1766314549787,-500.0,0.00041095,120]
[399342914,1766314549832,-500.0,0.00041095,120]
[399342915,1766314549874,-1843.47417681,0.00041095,120]
[399342916,1766314549918,-1691.6,0.00041095,120]
[399342917,1766314549962,-500.0,0.00041095,120]
[399342918,1766314550005,-500.0,0.00041095,120]
[399342919,1766314550053,-1691.6,0.00041095,120]
[399342920,1766314550100,-500.0,0.00041095,120]
[399342921,1766314550145,-500.0,0.00041095,120]
[399342922,1766314550190,-1691.6,0.00041095,120]
[399342923,1766314550234,-293.30562,0.00041095,120]
[399342924,1766314550278,-500.0,0.00041095,120]
[399342925,1766314550323,-1691.6,0.00041095,120]
[399342926,1766314550366,-500.0,0.00041095,120]
[399342927,1766314550409,-563.15769189,0.00041095,120]
[399342928,1766314550452,-1691.6,0.00041095,120]
[399342929,1766314550496,-500.0,0.00041095,120]
[399342930,1766314550538,-308.91496465,0.00041095,120]
[399342931,1766314550581,-500.0,0.00041095,120]
[399342932,1766314550624,-1691.73532936,0.00041095,120]
[399342933,1766314550669,-500.0,0.00041095,120]
[399342934,1766314550714,-500.0,0.00041095,120]
[399342935,1766314550759,-500.0,0.00041095,120]
[399342936,1766314550802,-500.0,0.00041095,120]
[399342937,1766314550844,-500.0,0.00041095,120]
[399342938,1766314550888,-500.0,0.00041095,120]
[399342939,1766314550929,-500.0,0.00041095,120]
[399342940,1766314550973,-500.0,0.00041095,120]
[399342941,1766314551016,-500.0,0.00041095,120]
[399342942,1766314551067,-500.0,0.00041095,120]
[399342943,1766314551112,-500.0,0.00041095,120]
[399342944,1766314551157,-500.0,0.00041095,120]
[399342945,1766314551202,-581.77427891,0.00041095,120]
[399342946,1766314551246,-500.0,0.00041095,120]
[399342947,1766314551290,-500.0,0.00041095,120]
[399342948,1766314551335,-500.0,0.00041095,120]
[399342949,1766314551379,-500.0,0.00041095,120]
[399342950,1766314551426,-500.0,0.00041095,120]
[399342951,1766314551470,-500.0,0.00041095,120]
[399342952,1766314551513,-500.0,0.00041095,120]
[399342953,1766314551556,-500.0,0.00041095,120]
[399342954,1766314551597,-500.0,0.00041095,120]
[399342955,1766314551641,-500.0,0.00041095,120]
[399342956,1766314551684,-562.50604712,0.00041095,120]
[399342957,1766314551729,-122.64769463,0.00041095,120]
[399342960,1766314635126,500.0,0.000176,30]
[399342961,1766314635317,313.44712542,0.000176,30]
[399343922,1766314933773,-65835.9332811,0.00042743,60]
[399343923,1766314933813,-150.0,0.00042743,120]
[399343924,1766314933851,-278.61519705,0.00042743,120]
[399343925,1766314933892,-377.85173577,0.00042743,120]
[399343926,1766314933934,-500.0,0.00042743,120]
[399343927,1766314933977,-500.0,0.00042743,120]
[399343928,1766314934021,-500.0,0.00042743,120]
[399343929,1766314934066,-500.0,0.00042743,120]
[399343930,1766314934110,-500.0,0.00042743,120]
[399343932,1766314934150,-500.0,0.00042743,120]
[399343933,1766314934192,-513.39884908,0.00042743,120]
[399343934,1766314934233,-714.29786528,0.00042743,60]
[399343935,1766314934271,-650.34,0.00042743,120]
[399343936,1766314934307,-650.34,0.00042743,120]
[399343937,1766314934343,-650.34,0.00042743,120]
[399343938,1766314934384,-650.34,0.00042743,120]
[399343939,1766314934425,-650.34,0.00042743,120]
[399343941,1766314934466,-650.34,0.00042743,120]
[399343942,1766314934508,-650.34,0.00042743,120]
[399343943,1766314934548,-650.34,0.00042743,120]
[399343944,1766314934585,-650.34,0.00042743,120]
[399343945,1766314934621,-650.34,0.00042743,120]
[399343946,1766314934656,-650.34,0.00042743,120]
[399343947,1766314934690,-650.34,0.00042743,120]
[399343949,1766314934723,-650.34,0.00042743,120]
[399343950,1766314934755,-650.34,0.00042743,120]
[399343951,1766314934787,-650.34,0.00042743,120]
[399343952,1766314934820,-650.34,0.00042743,120]
[399343953,1766314934853,-650.34,0.00042743,120]
[399343954,1766314934887,-650.34,0.00042743,120]
[399343955,1766314934920,-650.34,0.00042743,120]
[399343956,1766314934954,-650.34,0.00042743,120]
[399343957,1766314934988,-650.34,0.00042743,120]
[399343959,1766314935021,-650.34,0.00042743,120]
[399343960,1766314935056,-650.34,0.00042743,120]
[399343961,1766314935091,-650.5486057,0.00042743,120]
[399343962,1766314935130,-504.78325924,0.00042743,120]
[399343963,1766314935165,-2918.26404,0.00042743,60]
[399343964,1766314935200,-2918.26404,0.00042743,60]
[399343965,1766314935248,-2918.26404,0.00042743,60]
[399343966,1766314935301,-2918.26404,0.00042743,60]
[399343967,1766314935339,-2918.26404,0.00042743,60]
[399343968,1766314935374,-500.0,0.00042743,120]
[399343969,1766314935408,-606.66488324,0.00042743,120]
[399343970,1766314935441,-2665.89346376,0.00042743,60]
[399343971,1766314935475,-500.0,0.00042743,120]
[399343973,1766314935905,-500.0,0.00042743,120]
[399343974,1766314935943,-500.0,0.00042743,120]
[399343975,1766314935979,-500.0,0.00042743,120]
[399343976,1766314936016,-500.0,0.00042743,120]
[399343977,1766314936052,-500.0,0.00042743,120]
[399343978,1766314936089,-500.0,0.00042743,120]
[399343979,1766314936128,-500.0,0.00042743,120]
[399343980,1766314936166,-500.0,0.00042743,120]
[399343981,1766314936204,-500.0,0.00042743,120]
[399343982,1766314936252,-167.96508007,0.00042743,120]
[399343983,1766314936292,-250.37608086,0.00042743,120]
[399343984,1766314936334,-375.62988362,0.00042743,120]
[399343985,1766314936376,-384.74520058,0.00042743,60]
[399343986,1766314936419,-293.9825522,0.00042743,120]
[399343987,1766314936457,-1106.55263897,0.00042743,60]
[399343988,1766314936496,-2549.33565,0.00042743,60]
[399343989,1766314936532,-2549.33565,0.00042743,60]
[399343990,1766314936568,-2549.33565,0.00042743,60]
[399343991,1766314936603,-2549.33565,0.00042743,60]
[399343992,1766314936636,-2549.33565,0.00042743,60]
[399343993,1766314936671,-500.0,0.00042743,120]
[399343994,1766314936704,-500.0,0.00042743,120]
[399343995,1766314936741,-500.0,0.00042743,120]
[399343996,1766314936776,-266.30214834,0.00042743,120]
[399343997,1766314936811,-4212.93677752,0.00042743,90]
[399343998,1766314936845,-517.89263284,0.00042743,120]
[399343999,1766314936879,-848.92578399,0.00042743,91]
[399344000,1766314936913,-577.92601836,0.00042743,60]
[399344001,1766314936946,-516.96263508,0.00042743,120]
[399344002,1766314936981,-1303.10985606,0.00042743,120]
[399344003,1766314937017,-966.91379381,0.00042743,120]
[399344004,1766314937052,-1305.77244428,0.00042743,120]
[399344005,1766314937089,-2457.65193243,0.00042743,120]
[399344006,1766314937124,-298.63291375,0.00042743,120]
[399344007,1766314937160,-3297.44716237,0.00042743,120]
[399344008,1766314937196,-367.77873805,0.00042743,120]
[399344009,1766314937234,-2801.53758786,0.00042743,120]
[399344010,1766314937272,-844.34731821,0.00042743,120]
[399344011,1766314937309,-694.68604647,0.00042743,120]
[399344012,1766314937346,-1948.59375286,0.00042743,120]
[399344013,1766314937384,-252.97684503,0.00042743,120]
[399344014,1766314937420,-235.79666465,0.00042743,120]
[399344015,1766314937457,-465.90943071,0.00042743,120]
[399344016,1766314937492,-372.90373255,0.00042743,120]
[399344017,1766314937526,-1248.12872297,0.00042743,90]
[399344018,1766314937559,-1163.49315562,0.00042743,120]
[399344019,1766314937592,-3824.61515712,0.00042743,120]
[399344020,1766314937624,-599.44465034,0.00042743,120]
[399344021,1766314937657,-2345.33042248,0.00042743,120]
[399344022,1766314937698,-1972.76409369,0.00042743,60]
[399344023,1766314937739,-499.89274014,0.00042743,120]
[399344024,1766314937783,-176.26511296,0.00042743,120]
[399344025,1766314937820,-1089.94050672,0.00042743,120]
[399344026,1766314937855,-665.54333768,0.00042743,120]
[399344027,1766314937891,-1128.2195539,0.00042743,120]
[399344028,1766314937925,-2016.44433381,0.00042743,120]
[399344029,1766314937961,-2181.56896429,0.00042743,120]
[399344030,1766314937996,-1512.68375113,0.00042743,120]
[399344031,1766314938031,-1634.77002697,0.00042743,120]
[399344032,1766314938065,-500.0,0.00042743,120]
[399344033,1766314938100,-500.0,0.00042743,120]
[399344034,1766314938134,-199.028298,0.00042743,75]
[399344035,1766314938169,-255.08420729,0.00042743,120]
[399344036,1766314938204,-500.0,0.00042743,120]
[399344037,1766314938246,-500.0,0.00042743,120]
[399344038,1766314938283,-2391.43100977,0.00042743,120]
[399344039,1766314938317,-1466.60304872,0.00042743,120]
[399344040,1766314938352,-667.95675796,0.00042743,120]
[399344041,1766314938386,-1801.13435634,0.00042743,120]
[399344042,1766314938420,-2888.44589556,0.00042743,120]
[399344043,1766314938454,-659.03530184,0.00042743,120]
[399344044,1766314938486,-1749.01183967,0.00042743,120]
[399344045,1766314938519,-245.60340549,0.00042743,120]
[399344046,1766314938552,-1171.59634931,0.00042743,120]
[399344047,1766314938584,-1322.61010638,0.00042743,120]
[399344048,1766314938617,-1369.38496506,0.00042743,120]
[399344049,1766314938651,-1221.01227106,0.00042743,120]
[399344050,1766314938683,-2469.33960846,0.00042743,120]
[399344051,1766314938717,-412.2017616,0.00042743,120]
[399344052,1766314938751,-1441.01312595,0.00042743,120]
[399344053,1766314938784,-2841.91259677,0.00042743,120]
[399344054,1766314938817,-2001.90460711,0.00042743,120]
[399344055,1766314938849,-1745.39235607,0.00042743,120]
[399344056,1766314938880,-930.87234437,0.00042743,60]
[399344057,1766314938912,-266.73491958,0.00042743,120]
[399344058,1766314938946,-726.30946871,0.00042743,120]
[399344059,1766314938978,-1379.06236105,0.00042743,120]
[399344060,1766314939011,-2184.9667363,0.00042743,120]
[399344061,1766314939043,-3355.9766491,0.00042743,120]
[399344062,1766314939076,-175.71907341,0.00042743,120]
[399344063,1766314939110,-745.98706098,0.00042743,120]
[399344064,1766314939144,-156.1735586,0.00042743,120]
[399344065,1766314939182,-1398.97511276,0.00042743,120]
[399344066,1766314939220,-1502.51600091,0.00042743,120]
[399344067,1766314939481,-1998.62179433,0.00042743,120]
[399344068,1766314939533,-318.13848301,0.00042743,120]
[399344069,1766314939568,-1393.48264859,0.00042743,120]
[399344070,1766314939604,-756.0,0.00042743,120]
[399344071,1766314939636,-1183.92304282,0.00042743,120]
[399344072,1766314939669,-948.76991153,0.00042743,90]
[399344073,1766314939702,-513.72199392,0.00042743,120]
[399344074,1766314939734,-2950.57902217,0.00042743,120]
[399344075,1766314939767,-338.57304387,0.00042743,120]
[399344076,1766314939800,-504.29916743,0.00042743,120]
[399344077,1766314939833,-947.59317167,0.00042743,120]
[399344078,1766314939865,-231.96954242,0.00042743,120]
[399344079,1766314939897,-1721.93565867,0.00042743,120]
[399344080,1766314939931,-1670.67954394,0.00042743,120]
[399344081,1766314939963,-196.35181659,0.00042743,120]
[399344082,1766314939995,-1021.53728512,0.00042743,120]
[399344083,1766314940027,-2042.37575694,0.00042743,120]
[399344084,1766314940065,-500.36920751,0.00042743,60]
[399344085,1766314940099,-1571.63065212,0.00042743,120]
[399344086,1766314940132,-582.42550387,0.00042743,120]
[399344087,1766314940166,-1197.8795363,0.00042743,120]
[399344088,1766314940199,-2557.70524798,0.00042743,120]
[399344089,1766314940239,-533.83273195,0.00042743,120]
[399344090,1766314940277,-3444.48419598,0.00042743,90]
[399344091,1766314940317,-665.6490962,0.00042743,120]
[399344092,1766314940355,-500.0,0.00042743,120]
[399344093,1766314940391,-489.4951379,0.00042743,120]
[399344094,1766314940428,-186.24819218,0.00042743,120]
[399344095,1766314940467,-2626.05167987,0.00042743,120]
[399344096,1766314940504,-236.11113584,0.00042743,120]
[399344097,1766314940542,-498.41548081,0.00042743,120]
[399344098,1766314940578,-2536.0,0.00042743,65]